[Event "*** Titled Tuesday Blitz"]
[Site "Chess.com"]
[Date "2021.02.09"]
[Round "1"]
[White "VFernandezB"]
[Black "Korchmar_Vasiliy"]
[Result "0-1"]
[WhiteElo "2296"]
[BlackElo "2602"]
[TimeControl "180+1"]
[EndTime "10:01:44 PST"]
[Termination "Korchmar_Vasiliy won by resignation"]

1. e4 {[%clk 0:02:56.3]} 1... c5 {[%clk 0:02:58.6]} 2. Nf3 {[%clk 0:02:53.9]}
2... d6 {[%clk 0:02:58.9]} 3. d4 {[%clk 0:02:53]} 3... cxd4 {[%clk 0:02:59.8]}
4. Nxd4 {[%clk 0:02:53.3]} 4... Nf6 {[%clk 0:03:00.2]} 5. Nc3 {[%clk 0:02:52.9]}
5... Nc6 {[%clk 0:03:00.3]} 6. Bg5 {[%clk 0:02:50.5]} 6... e6 {[%clk 0:02:57.2]}
7. Qd2 {[%clk 0:02:49.6]} 7... a6 {[%clk 0:02:56.7]} 8. O-O-O {[%clk 0:02:49.5]}
8... h6 {[%clk 0:02:56.7]} 9. Bh4 {[%clk 0:02:45.2]} 9... Nxe4 {[%clk
0:02:56.1]} 10. Nxe4 {[%clk 0:02:23.6]} 10... Qxh4 {[%clk 0:02:54.7]} 11. Nxd6+
{[%clk 0:02:23.2]} 11... Bxd6 {[%clk 0:02:49.2]} 12. Nxc6 {[%clk 0:02:13.5]}
12... Bf4 {[%clk 0:02:48.6]} 0-1

[Event "*** Titled Tuesday Blitz"]
[Site "Chess.com"]
[Date "2021.02.09"]
[Round "1"]
[White "Rud_Makarian"]
[Black "Gerasimenyuk_Miha"]
[Result "1-0"]
[WhiteElo "2840"]
[BlackElo "2426"]
[TimeControl "180+1"]
[EndTime "10:02:43 PST"]
[Termination "Rud_Makarian won by resignation"]

1. d4 {[%clk 0:02:58.7]} 1... d6 {[%clk 0:02:59.4]} 2. e4 {[%clk 0:02:56.5]}
2... c6 {[%clk 0:02:56.1]} 3. Nc3 {[%clk 0:02:53]} 3... Nf6 {[%clk 0:02:53]} 4.
Nf3 {[%clk 0:02:48.1]} 4... Bg4 {[%clk 0:02:53.2]} 5. Be2 {[%clk 0:02:47.7]}
5... e5 {[%clk 0:02:50.7]} 6. dxe5 {[%clk 0:02:44.3]} 6... dxe5 {[%clk
0:02:50.3]} 7. Qxd8+ {[%clk 0:02:43.6]} 7... Kxd8 {[%clk 0:02:51.2]} 8. Nxe5
{[%clk 0:02:44.4]} 8... Bxe2 {[%clk 0:02:49.6]} 9. Kxe2 {[%clk 0:02:39.4]} 9...
Ke8 {[%clk 0:02:49.1]} 10. Bg5 {[%clk 0:02:32.8]} 10... Nbd7 {[%clk 0:02:48.8]}
11. Nxd7 {[%clk 0:02:32.4]} 11... Nxd7 {[%clk 0:02:48.1]} 12. Rad1 {[%clk
0:02:31]} 12... f6 {[%clk 0:02:46.7]} 13. Be3 {[%clk 0:02:29.7]} 13... Bb4
{[%clk 0:02:45.7]} 14. Nb1 {[%clk 0:02:26.2]} 14... Ne5 {[%clk 0:02:40.2]} 15.
c3 {[%clk 0:02:19]} 15... Ba5 {[%clk 0:02:39]} 16. f4 {[%clk 0:02:18.6]} 16...
Nc4 {[%clk 0:02:38.7]} 17. Bc1 {[%clk 0:02:12.6]} 17... Rd8 {[%clk 0:02:36.6]}
18. Rxd8+ {[%clk 0:02:04.5]} 18... Kxd8 {[%clk 0:02:34.1]} 19. Rd1+ {[%clk
0:02:05.4]} 19... Kc8 {[%clk 0:02:32.6]} 20. b3 {[%clk 0:02:00.1]} 1-0

[Event "*** Titled Tuesday Blitz"]
[Site "Chess.com"]
[Date "2021.02.09"]
[Round "1"]
[White "IMAghasiyevKamal"]
[Black "EndGameDestroyer"]
[Result "0-1"]
[WhiteElo "2529"]
[BlackElo "2241"]
[TimeControl "180+1"]
[EndTime "10:03:04 PST"]
[Termination "EndGameDestroyer won by resignation"]

1. d4 {[%clk 0:03:00.9]} 1... Nf6 {[%clk 0:02:59.7]} 2. c4 {[%clk 0:03:00.5]}
2... e6 {[%clk 0:03:00]} 3. g3 {[%clk 0:02:59.2]} 3... d5 {[%clk 0:02:58.7]} 4.
Bg2 {[%clk 0:02:57.7]} 4... Be7 {[%clk 0:02:58.8]} 5. Nf3 {[%clk 0:02:57.1]}
5... c6 {[%clk 0:02:57.2]} 6. Nbd2 {[%clk 0:02:55.8]} 6... b6 {[%clk 0:02:51.6]}
7. O-O {[%clk 0:02:55.2]} 7... Bb7 {[%clk 0:02:51.5]} 8. Qc2 {[%clk 0:02:55.2]}
8... Nbd7 {[%clk 0:02:46.9]} 9. b3 {[%clk 0:02:51]} 9... dxc4 {[%clk 0:02:42.6]}
10. bxc4 {[%clk 0:02:47.1]} 10... c5 {[%clk 0:02:39]} 11. e3 {[%clk 0:02:43.8]}
11... cxd4 {[%clk 0:02:33.6]} 12. exd4 {[%clk 0:02:43.3]} 12... O-O {[%clk
0:02:31.6]} 13. Bb2 {[%clk 0:02:43.2]} 13... Rc8 {[%clk 0:02:29]} 14. Rac1
{[%clk 0:02:37.7]} 14... Qc7 {[%clk 0:02:26.4]} 15. Rfe1 {[%clk 0:02:35.3]}
15... Rfd8 {[%clk 0:02:23.5]} 16. Nb3 {[%clk 0:02:30.8]} 16... Nf8 {[%clk
0:02:17.3]} 17. c5 {[%clk 0:02:17]} 17... N8d7 {[%clk 0:02:04.3]} 18. c6 {[%clk
0:01:59.7]} 18... Qxc6 {[%clk 0:01:53.9]} 0-1

[Event "*** Titled Tuesday Blitz"]
[Site "Chess.com"]
[Date "2021.02.09"]
[Round "1"]
[White "MillyNeuf"]
[Black "Susal_De_Silva"]
[Result "0-1"]
[WhiteElo "2322"]
[BlackElo "2627"]
[TimeControl "180+1"]
[EndTime "10:03:34 PST"]
[Termination "Susal_De_Silva won by resignation"]

1. e4 {[%clk 0:03:00.8]} 1... e5 {[%clk 0:02:59.5]} 2. Nf3 {[%clk 0:03:00.4]}
2... Nc6 {[%clk 0:02:59.8]} 3. Bc4 {[%clk 0:03:00.6]} 3... Nf6 {[%clk
0:02:59.6]} 4. d3 {[%clk 0:03:00.6]} 4... Bc5 {[%clk 0:02:59.6]} 5. O-O {[%clk
0:03:00.5]} 5... O-O {[%clk 0:03:00.1]} 6. c3 {[%clk 0:03:00.9]} 6... d5 {[%clk
0:03:00.4]} 7. exd5 {[%clk 0:03:00.5]} 7... Nxd5 {[%clk 0:03:01.3]} 8. Re1
{[%clk 0:02:57.6]} 8... Bg4 {[%clk 0:03:00.8]} 9. Nbd2 {[%clk 0:02:56.6]} 9...
Nb6 {[%clk 0:02:59.5]} 10. Bb3 {[%clk 0:02:56.2]} 10... Qxd3 {[%clk 0:02:50.1]}
11. Bc2 {[%clk 0:02:54.3]} 11... Qd8 {[%clk 0:02:43.9]} 12. h3 {[%clk 0:02:42]}
12... Bh5 {[%clk 0:02:41.1]} 13. Qe2 {[%clk 0:02:36.4]} 13... Bd6 {[%clk
0:02:39]} 14. Ne4 {[%clk 0:02:27.5]} 14... f5 {[%clk 0:02:34.6]} 15. Nxd6 {[%clk
0:02:21.9]} 15... cxd6 {[%clk 0:02:27.7]} 16. Bb3+ {[%clk 0:01:50.8]} 16... Kh8
{[%clk 0:02:25.1]} 17. Qe3 {[%clk 0:01:50.3]} 17... f4 {[%clk 0:02:20.8]} 18.
Qe4 {[%clk 0:01:47.5]} 18... d5 {[%clk 0:02:16.4]} 19. Qc2 {[%clk 0:01:36.9]}
19... Bxf3 {[%clk 0:02:14.6]} 20. gxf3 {[%clk 0:01:37.8]} 20... Qh4 {[%clk
0:02:14.7]} 21. Kh2 {[%clk 0:01:21.7]} 21... Rf6 {[%clk 0:02:13.4]} 22. Qd3
{[%clk 0:01:19.8]} 22... Qxf2+ {[%clk 0:02:11.8]} 0-1

[Event "*** Titled Tuesday Blitz"]
[Site "Chess.com"]
[Date "2021.02.09"]
[Round "1"]
[White "ajedrez1101"]
[Black "Brave_spirit12"]
[Result "0-1"]
[WhiteElo "2077"]
[BlackElo "2483"]
[TimeControl "180+1"]
[EndTime "10:03:38 PST"]
[Termination "Brave_spirit12 won by checkmate"]

1. b3 {[%clk 0:03:00.9]} 1... Nf6 {[%clk 0:02:59.1]} 2. Bb2 {[%clk 0:03:01.4]}
2... e6 {[%clk 0:02:37.6]} 3. e3 {[%clk 0:03:01.2]} 3... d5 {[%clk 0:02:37.8]}
4. Nf3 {[%clk 0:03:01.2]} 4... Be7 {[%clk 0:02:38.3]} 5. Be2 {[%clk 0:03:00.4]}
5... O-O {[%clk 0:02:37.8]} 6. O-O {[%clk 0:03:00.9]} 6... c5 {[%clk 0:02:38.1]}
7. d4 {[%clk 0:03:01.5]} 7... Nc6 {[%clk 0:02:38.5]} 8. c4 {[%clk 0:03:02.1]}
8... Ne4 {[%clk 0:02:38.6]} 9. Nbd2 {[%clk 0:03:00.5]} 9... f5 {[%clk
0:02:38.2]} 10. Ne5 {[%clk 0:02:47.4]} 10... Nxe5 {[%clk 0:02:34.6]} 11. dxe5
{[%clk 0:02:47.3]} 11... a6 {[%clk 0:02:31.6]} 12. a4 {[%clk 0:02:44.2]} 12...
Bd7 {[%clk 0:02:19.7]} 13. f3 {[%clk 0:02:44.3]} 13... Nxd2 {[%clk 0:02:14.3]}
14. Qxd2 {[%clk 0:02:44.2]} 14... Bc6 {[%clk 0:02:13.2]} 15. Rfd1 {[%clk
0:02:35.3]} 15... Qb6 {[%clk 0:02:07.8]} 16. Qc2 {[%clk 0:02:24.2]} 16... Rad8
{[%clk 0:02:05.6]} 17. a5 {[%clk 0:02:24.7]} 17... Qc7 {[%clk 0:02:04.1]} 18.
Bc3 {[%clk 0:02:21.8]} 18... d4 {[%clk 0:01:59.9]} 19. exd4 {[%clk 0:02:21.7]}
19... cxd4 {[%clk 0:01:59.5]} 20. Bxd4 {[%clk 0:02:22]} 20... Rxd4 {[%clk
0:01:59]} 21. Rxd4 {[%clk 0:02:21.9]} 21... Bc5 {[%clk 0:01:59.6]} 22. Rd1
{[%clk 0:02:22.4]} 22... Qxe5 {[%clk 0:01:57.4]} 23. f4 {[%clk 0:02:03.7]} 23...
Bxd4+ {[%clk 0:01:50.8]} 24. Kh1 {[%clk 0:02:02.3]} 24... Qxf4 {[%clk
0:01:51.1]} 25. Qd3 {[%clk 0:01:53.8]} 25... Qf2 {[%clk 0:01:40.5]} 26. Bf1
{[%clk 0:01:52.2]} 26... Qg1# {[%clk 0:01:38.9]} 0-1

[Event "*** Titled Tuesday Blitz"]
[Site "Chess.com"]
[Date "2021.02.09"]
[Round "1"]
[White "Federtiu"]
[Black "night_player"]
[Result "1-0"]
[WhiteElo "2564"]
[BlackElo "2244"]
[TimeControl "180+1"]
[EndTime "10:03:42 PST"]
[Termination "Federtiu won by resignation"]

1. e4 {[%clk 0:03:00.9]} 1... c5 {[%clk 0:02:58.7]} 2. Nc3 {[%clk 0:02:59.6]}
2... Nc6 {[%clk 0:02:55.8]} 3. Nge2 {[%clk 0:02:59.7]} 3... e6 {[%clk
0:02:54.8]} 4. d4 {[%clk 0:02:59.7]} 4... cxd4 {[%clk 0:02:54]} 5. Nxd4 {[%clk
0:03:00.6]} 5... d5 {[%clk 0:02:53.4]} 6. Bb5 {[%clk 0:02:41]} 6... Ne7 {[%clk
0:02:46.9]} 7. exd5 {[%clk 0:02:39.1]} 7... exd5 {[%clk 0:02:45]} 8. O-O {[%clk
0:02:39.4]} 8... a6 {[%clk 0:02:37.8]} 9. Ba4 {[%clk 0:02:38.6]} 9... b5 {[%clk
0:02:34.8]} 10. Bb3 {[%clk 0:02:32.4]} 10... Nxd4 {[%clk 0:02:31.7]} 11. Qxd4
{[%clk 0:02:33.3]} 11... Be6 {[%clk 0:02:31.4]} 12. Re1 {[%clk 0:02:27.2]} 12...
Nc6 {[%clk 0:02:07.4]} 13. Qxd5 {[%clk 0:02:17.3]} 13... Qxd5 {[%clk 0:01:46.4]}
14. Bxd5 {[%clk 0:02:16.9]} 14... Kd7 {[%clk 0:01:45.4]} 15. Bxe6+ {[%clk
0:02:11]} 15... fxe6 {[%clk 0:01:45.3]} 16. Bf4 {[%clk 0:02:11.9]} 16... Ke7
{[%clk 0:01:26]} 17. Rad1 {[%clk 0:02:00.3]} 17... Rd8 {[%clk 0:01:20.2]} 18.
Bg5+ {[%clk 0:01:52.1]} 1-0

[Event "*** Titled Tuesday Blitz"]
[Site "Chess.com"]
[Date "2021.02.09"]
[Round "1"]
[White "chessablanca"]
[Black "EdmundPlayer"]
[Result "1-0"]
[WhiteElo "2505"]
[BlackElo "2155"]
[TimeControl "180+1"]
[EndTime "10:03:46 PST"]
[Termination "chessablanca won by resignation"]

1. Nf3 {[%clk 0:02:59.7]} 1... d5 {[%clk 0:02:57.7]} 2. c4 {[%clk 0:02:59]} 2...
d4 {[%clk 0:02:55.1]} 3. e3 {[%clk 0:02:58.1]} 3... Nc6 {[%clk 0:02:52.4]} 4.
exd4 {[%clk 0:02:57.7]} 4... Nxd4 {[%clk 0:02:50.6]} 5. Nxd4 {[%clk 0:02:58.6]}
5... Qxd4 {[%clk 0:02:50.3]} 6. Nc3 {[%clk 0:02:58.5]} 6... Nf6 {[%clk
0:02:41.3]} 7. d3 {[%clk 0:02:58]} 7... g6 {[%clk 0:02:12.9]} 8. Be3 {[%clk
0:02:56.5]} 8... Qd8 {[%clk 0:02:10.1]} 9. Be2 {[%clk 0:02:56.2]} 9... Bg7
{[%clk 0:02:10]} 10. O-O {[%clk 0:02:56.1]} 10... O-O {[%clk 0:02:09.5]} 11. d4
{[%clk 0:02:53.3]} 11... c6 {[%clk 0:02:04.6]} 12. Qb3 {[%clk 0:02:45.1]} 12...
Qc7 {[%clk 0:01:59.2]} 13. Rac1 {[%clk 0:02:41.8]} 13... Bf5 {[%clk 0:01:46.9]}
14. Rfd1 {[%clk 0:02:38.3]} 14... Rfd8 {[%clk 0:01:44]} 15. d5 {[%clk
0:02:30.1]} 15... cxd5 {[%clk 0:01:33.7]} 16. cxd5 {[%clk 0:02:27.8]} 16... Qd7
{[%clk 0:01:32.7]} 17. Bf4 {[%clk 0:02:13.9]} 17... Rac8 {[%clk 0:01:31]} 18.
Bb5 {[%clk 0:02:10.2]} 18... Rxc3 {[%clk 0:01:08.3]} 19. Rxc3 {[%clk 0:02:03.5]}
1-0

[Event "*** Titled Tuesday Blitz"]
[Site "Chess.com"]
[Date "2021.02.09"]
[Round "1"]
[White "johnathan113"]
[Black "AniJak"]
[Result "1-0"]
[WhiteElo "2613"]
[BlackElo "2308"]
[TimeControl "180+1"]
[EndTime "10:04:23 PST"]
[Termination "johnathan113 won by resignation"]

1. e4 {[%clk 0:03:00.9]} 1... c5 {[%clk 0:02:58.9]} 2. Nf3 {[%clk 0:03:00.3]}
2... e6 {[%clk 0:02:58.8]} 3. d4 {[%clk 0:03:00.5]} 3... cxd4 {[%clk 0:02:59.1]}
4. Nxd4 {[%clk 0:03:01.4]} 4... a6 {[%clk 0:02:59.3]} 5. Nc3 {[%clk 0:03:01.9]}
5... b5 {[%clk 0:02:59.2]} 6. g3 {[%clk 0:03:02.4]} 6... Bb7 {[%clk 0:02:58.8]}
7. Bg2 {[%clk 0:03:02.9]} 7... Nf6 {[%clk 0:02:57.3]} 8. O-O {[%clk 0:03:03.3]}
8... b4 {[%clk 0:02:56.2]} 9. Na4 {[%clk 0:03:03.5]} 9... Bxe4 {[%clk
0:02:51.9]} 10. Bxe4 {[%clk 0:03:03]} 10... Nxe4 {[%clk 0:02:52]} 11. Re1 {[%clk
0:03:03.9]} 11... d5 {[%clk 0:02:50.8]} 12. Nxe6 {[%clk 0:02:04.7]} 12... fxe6
{[%clk 0:02:43.2]} 13. Qh5+ {[%clk 0:02:05]} 13... g6 {[%clk 0:02:02.6]} 14. Qe5
{[%clk 0:02:04.1]} 14... Rg8 {[%clk 0:01:20.8]} 15. Qxe6+ {[%clk 0:02:00.9]}
15... Qe7 {[%clk 0:01:20.4]} 16. Qxd5 {[%clk 0:01:53.2]} 16... Qf7 {[%clk
0:00:51.4]} 17. Rxe4+ {[%clk 0:01:52.2]} 17... Be7 {[%clk 0:00:51.7]} 18. Qxa8
{[%clk 0:01:49.1]} 18... Kd7 {[%clk 0:00:49.5]} 19. Bf4 {[%clk 0:01:44.8]} 19...
Nc6 {[%clk 0:00:48.9]} 20. Rd1+ {[%clk 0:01:44.2]} 1-0

[Event "*** Titled Tuesday Blitz"]
[Site "Chess.com"]
[Date "2021.02.09"]
[Round "1"]
[White "FairChess_on_YouTube"]
[Black "AttackSparrow"]
[Result "1-0"]
[WhiteElo "2946"]
[BlackElo "2458"]
[TimeControl "180+1"]
[EndTime "10:04:31 PST"]
[Termination "FairChess_on_YouTube won by resignation"]

1. d4 {[%clk 0:02:59.3]} 1... Nf6 {[%clk 0:02:59]} 2. Bg5 {[%clk 0:02:56.8]}
2... e6 {[%clk 0:02:57.4]} 3. Nd2 {[%clk 0:02:56.3]} 3... d5 {[%clk 0:02:57]} 4.
e3 {[%clk 0:02:56.1]} 4... Be7 {[%clk 0:02:56]} 5. Bd3 {[%clk 0:02:54.5]} 5...
c5 {[%clk 0:02:56]} 6. c3 {[%clk 0:02:54.5]} 6... Nc6 {[%clk 0:02:55.5]} 7. f4
{[%clk 0:02:54.4]} 7... b6 {[%clk 0:02:52.6]} 8. Ngf3 {[%clk 0:02:54]} 8... Bb7
{[%clk 0:02:52.4]} 9. O-O {[%clk 0:02:53.5]} 9... h6 {[%clk 0:02:52.5]} 10. Bxf6
{[%clk 0:02:53.2]} 10... Bxf6 {[%clk 0:02:53.4]} 11. Ne5 {[%clk 0:02:52.7]}
11... O-O {[%clk 0:02:49.1]} 12. Qh5 {[%clk 0:02:50.8]} 12... Ne7 {[%clk
0:02:40.8]} 13. Ng4 {[%clk 0:02:45.8]} 13... Nf5 {[%clk 0:02:32.8]} 14. Nf3
{[%clk 0:02:33.2]} 14... Nd6 {[%clk 0:02:23]} 15. Nxh6+ {[%clk 0:02:03.8]} 15...
gxh6 {[%clk 0:02:19.6]} 16. Qxh6 {[%clk 0:02:04.7]} 16... Ne4 {[%clk 0:02:18.3]}
17. Bxe4 {[%clk 0:01:59]} 17... dxe4 {[%clk 0:02:18.4]} 18. Ng5 {[%clk
0:01:59.1]} 18... Bxg5 {[%clk 0:02:08.2]} 19. fxg5 {[%clk 0:02:00]} 19... Qd7
{[%clk 0:01:13.2]} 20. Rf6 {[%clk 0:01:47.7]} 20... cxd4 {[%clk 0:01:05.2]} 21.
g6 {[%clk 0:01:40.5]} 21... fxg6 {[%clk 0:01:05.1]} 22. Rxg6+ {[%clk 0:01:40.4]}
22... Kf7 {[%clk 0:01:05.4]} 23. Rf1+ {[%clk 0:01:36]} 23... Ke7 {[%clk
0:01:03.1]} 24. Rg7+ {[%clk 0:01:36.1]} 24... Kd6 {[%clk 0:01:00.2]} 25. Rxd7+
{[%clk 0:01:36]} 25... Kxd7 {[%clk 0:01:01.1]} 26. Rxf8 {[%clk 0:01:36.3]} 1-0

[Event "*** Titled Tuesday Blitz"]
[Site "Chess.com"]
[Date "2021.02.09"]
[Round "1"]
[White "tylityli"]
[Black "chessasuke"]
[Result "1-0"]
[WhiteElo "2282"]
[BlackElo "2538"]
[TimeControl "180+1"]
[EndTime "10:04:35 PST"]
[Termination "tylityli won by resignation"]

1. d4 {[%clk 0:02:58.7]} 1... e6 {[%clk 0:03:00.9]} 2. c4 {[%clk 0:02:57.7]}
2... Nf6 {[%clk 0:02:59.8]} 3. Nc3 {[%clk 0:02:57.2]} 3... Bb4 {[%clk
0:02:58.2]} 4. e3 {[%clk 0:02:56.6]} 4... O-O {[%clk 0:02:57.6]} 5. Ne2 {[%clk
0:02:57.5]} 5... d5 {[%clk 0:02:57.2]} 6. a3 {[%clk 0:02:56.9]} 6... Be7 {[%clk
0:02:56.1]} 7. cxd5 {[%clk 0:02:56.4]} 7... exd5 {[%clk 0:02:56.1]} 8. Nf4
{[%clk 0:02:57.3]} 8... Re8 {[%clk 0:02:56.8]} 9. Bd3 {[%clk 0:02:56.2]} 9...
Bd6 {[%clk 0:02:55.3]} 10. O-O {[%clk 0:02:55.2]} 10... Bxf4 {[%clk 0:02:53.9]}
11. exf4 {[%clk 0:02:52.3]} 11... Nc6 {[%clk 0:02:54.8]} 12. Bc2 {[%clk
0:02:48]} 12... Ne7 {[%clk 0:02:54.2]} 13. h3 {[%clk 0:02:44.7]} 13... Bf5
{[%clk 0:02:53.8]} 14. Bxf5 {[%clk 0:02:42.3]} 14... Nxf5 {[%clk 0:02:54.7]} 15.
Qd3 {[%clk 0:02:42.7]} 15... h5 {[%clk 0:02:52.4]} 16. Qxf5 {[%clk 0:02:41.3]}
16... Qd6 {[%clk 0:02:44.5]} 17. Bd2 {[%clk 0:02:34.2]} 17... Qb6 {[%clk
0:02:41.8]} 18. Nxd5 {[%clk 0:02:30]} 18... Nxd5 {[%clk 0:02:38.9]} 19. Qxd5
{[%clk 0:02:30.9]} 19... Qxb2 {[%clk 0:02:37.1]} 20. Be3 {[%clk 0:02:29.5]}
20... c6 {[%clk 0:02:36.7]} 21. Qxh5 {[%clk 0:02:26.2]} 21... Re6 {[%clk
0:02:34.7]} 22. f5 {[%clk 0:02:23.3]} 22... Rd6 {[%clk 0:02:31.7]} 23. Qg4
{[%clk 0:02:20.7]} 23... Re8 {[%clk 0:02:30.9]} 24. a4 {[%clk 0:02:18]} 24...
Re7 {[%clk 0:02:26]} 25. a5 {[%clk 0:02:13]} 25... Qb5 {[%clk 0:02:24]} 26. Rfb1
{[%clk 0:02:09.4]} 26... Qd5 {[%clk 0:02:24]} 27. Rc1 {[%clk 0:02:02.2]} 27...
f6 {[%clk 0:02:22.7]} 28. h4 {[%clk 0:01:58.1]} 28... Re4 {[%clk 0:02:20.3]} 29.
Qf3 {[%clk 0:01:51]} 29... Rxh4 {[%clk 0:02:13.4]} 30. Qxd5+ {[%clk 0:01:49.9]}
30... Rxd5 {[%clk 0:02:14.3]} 31. Rcb1 {[%clk 0:01:42.3]} 31... Rd7 {[%clk
0:02:05.8]} 32. f3 {[%clk 0:01:35.7]} 32... Kf7 {[%clk 0:02:03.2]} 33. Rc1
{[%clk 0:01:30.8]} 33... Rc7 {[%clk 0:01:56.2]} 34. Ra2 {[%clk 0:01:26]} 34...
Rh8 {[%clk 0:01:53.8]} 35. Rac2 {[%clk 0:01:23.9]} 35... Rhc8 {[%clk 0:01:47.2]}
36. d5 {[%clk 0:01:22.9]} 36... Ke7 {[%clk 0:01:45]} 37. d6+ {[%clk 0:01:19.3]}
1-0

[Event "*** Titled Tuesday Blitz"]
[Site "Chess.com"]
[Date "2021.02.09"]
[Round "1"]
[White "paulrusan"]
[Black "SaqoChess_Twitch"]
[Result "0-1"]
[WhiteElo "2237"]
[BlackElo "2552"]
[TimeControl "180+1"]
[EndTime "10:04:45 PST"]
[Termination "SaqoChess_Twitch won by resignation"]

1. e4 {[%clk 0:02:59.7]} 1... c5 {[%clk 0:02:59.3]} 2. b4 {[%clk 0:02:58.9]}
2... b6 {[%clk 0:02:57.9]} 3. bxc5 {[%clk 0:02:58.4]} 3... bxc5 {[%clk
0:02:58.8]} 4. Nc3 {[%clk 0:02:58.8]} 4... d6 {[%clk 0:02:58.6]} 5. Nf3 {[%clk
0:02:58]} 5... Nf6 {[%clk 0:02:59.1]} 6. Bb5+ {[%clk 0:02:55.6]} 6... Bd7 {[%clk
0:02:58.9]} 7. Qe2 {[%clk 0:02:50.9]} 7... e6 {[%clk 0:02:58.4]} 8. e5 {[%clk
0:02:50.5]} 8... dxe5 {[%clk 0:02:58.2]} 9. Nxe5 {[%clk 0:02:50.4]} 9... Be7
{[%clk 0:02:58.3]} 10. Qf3 {[%clk 0:02:37.9]} 10... Bxb5 {[%clk 0:02:47.5]} 11.
Qxa8 {[%clk 0:02:30.8]} 11... Bd6 {[%clk 0:02:30.1]} 12. f4 {[%clk 0:01:55.2]}
12... Bxe5 {[%clk 0:02:13.8]} 13. fxe5 {[%clk 0:01:54.9]} 13... Bc6 {[%clk
0:02:14.3]} 14. Qxa7 {[%clk 0:01:49.9]} 14... Ng4 {[%clk 0:02:07]} 15. O-O
{[%clk 0:01:18.6]} 15... Qd4+ {[%clk 0:01:51.6]} 16. Kh1 {[%clk 0:01:18.1]}
16... O-O {[%clk 0:01:47]} 17. Nd1 {[%clk 0:00:59.8]} 17... Qxe5 {[%clk
0:01:35.5]} 0-1

[Event "*** Titled Tuesday Blitz"]
[Site "Chess.com"]
[Date "2021.02.09"]
[Round "1"]
[White "Kovalchuk94"]
[Black "03revilo"]
[Result "1-0"]
[WhiteElo "2641"]
[BlackElo "2328"]
[TimeControl "180+1"]
[EndTime "10:04:54 PST"]
[Termination "Kovalchuk94 won by resignation"]

1. e4 {[%clk 0:03:00.9]} 1... c5 {[%clk 0:02:56.6]} 2. Nf3 {[%clk 0:03:00.4]}
2... d6 {[%clk 0:02:45.9]} 3. d4 {[%clk 0:02:59.7]} 3... cxd4 {[%clk 0:02:46.8]}
4. Nxd4 {[%clk 0:03:00.6]} 4... Nf6 {[%clk 0:02:47]} 5. Nc3 {[%clk 0:03:01.2]}
5... a6 {[%clk 0:02:47.5]} 6. Rg1 {[%clk 0:03:00.9]} 6... e5 {[%clk 0:02:47.5]}
7. Nb3 {[%clk 0:03:01.1]} 7... Be6 {[%clk 0:02:48.2]} 8. g4 {[%clk 0:03:01.3]}
8... d5 {[%clk 0:02:48.9]} 9. exd5 {[%clk 0:03:01.2]} 9... Nxd5 {[%clk 0:02:49]}
10. Nxd5 {[%clk 0:03:02.1]} 10... Qxd5 {[%clk 0:02:49.1]} 11. Qxd5 {[%clk
0:03:02.3]} 11... Bxd5 {[%clk 0:02:50]} 12. Be3 {[%clk 0:03:03.1]} 12... Nc6
{[%clk 0:02:50]} 13. O-O-O {[%clk 0:03:02.4]} 13... Bf3 {[%clk 0:02:42]} 14. Re1
{[%clk 0:02:51.9]} 14... Be7 {[%clk 0:02:42]} 15. g5 {[%clk 0:02:49.2]} 15...
O-O {[%clk 0:02:40.7]} 16. Nd2 {[%clk 0:02:16.9]} 16... Bh5 {[%clk 0:02:30.8]}
17. Bh3 {[%clk 0:02:08.6]} 17... Rad8 {[%clk 0:02:23.1]} 18. c3 {[%clk
0:02:05.5]} 18... Bg6 {[%clk 0:02:19.1]} 19. Bg4 {[%clk 0:02:03.7]} 19... Rd3
{[%clk 0:02:08.4]} 20. h4 {[%clk 0:02:02.3]} 20... f5 {[%clk 0:01:43.9]} 21.
gxf6 {[%clk 0:01:57.1]} 21... Bxf6 {[%clk 0:01:43]} 22. Be2 {[%clk 0:01:52.1]}
22... Rd7 {[%clk 0:01:36.2]} 23. h5 {[%clk 0:01:48.2]} 23... Bf7 {[%clk
0:01:31.8]} 24. Ne4 {[%clk 0:01:42.7]} 24... Bxa2 {[%clk 0:01:19.4]} 25. Bg4
{[%clk 0:01:33.1]} 25... Rdd8 {[%clk 0:01:15]} 26. Bc5 {[%clk 0:01:32.5]} 26...
Rfe8 {[%clk 0:01:13.1]} 27. Nxf6+ {[%clk 0:01:31.4]} 27... gxf6 {[%clk
0:01:13.7]} 28. Be6+ {[%clk 0:01:31.8]} 28... Kh8 {[%clk 0:01:12.5]} 29. Bxa2
{[%clk 0:01:31.9]} 29... Rc8 {[%clk 0:01:10.7]} 30. Be3 {[%clk 0:01:30.3]} 30...
Nd4 {[%clk 0:01:01.9]} 31. Bxd4 {[%clk 0:01:28.1]} 31... exd4 {[%clk 0:01:01.7]}
32. Rxe8+ {[%clk 0:01:28.8]} 1-0

[Event "*** Titled Tuesday Blitz"]
[Site "Chess.com"]
[Date "2021.02.09"]
[Round "1"]
[White "Mikhail_Golubev"]
[Black "Gusarov91"]
[Result "1-0"]
[WhiteElo "2532"]
[BlackElo "2214"]
[TimeControl "180+1"]
[EndTime "10:05:04 PST"]
[Termination "Mikhail_Golubev won by resignation"]

1. e4 {[%clk 0:03:00.9]} 1... c5 {[%clk 0:02:59.5]} 2. Nf3 {[%clk 0:02:59.8]}
2... d6 {[%clk 0:02:59.8]} 3. d4 {[%clk 0:02:59.1]} 3... Nf6 {[%clk 0:02:59.7]}
4. Nc3 {[%clk 0:02:58.2]} 4... cxd4 {[%clk 0:02:59.8]} 5. Nxd4 {[%clk
0:02:57.9]} 5... a6 {[%clk 0:03:00.5]} 6. Bc4 {[%clk 0:02:57.1]} 6... e6 {[%clk
0:02:59.5]} 7. O-O {[%clk 0:02:55]} 7... b5 {[%clk 0:02:59.5]} 8. Bb3 {[%clk
0:02:54.1]} 8... b4 {[%clk 0:02:58.8]} 9. Na4 {[%clk 0:02:53]} 9... Be7 {[%clk
0:02:54.7]} 10. f4 {[%clk 0:02:50.2]} 10... Nxe4 {[%clk 0:02:49.3]} 11. f5
{[%clk 0:02:41.3]} 11... d5 {[%clk 0:02:35]} 12. fxe6 {[%clk 0:02:29.8]} 12...
Bxe6 {[%clk 0:02:34.2]} 13. Nxe6 {[%clk 0:02:27.6]} 13... fxe6 {[%clk
0:02:33.7]} 14. Qh5+ {[%clk 0:02:24.9]} 14... g6 {[%clk 0:02:24.7]} 15. Qe5
{[%clk 0:02:24.5]} 15... Rf8 {[%clk 0:02:18.7]} 16. Rxf8+ {[%clk 0:02:22]} 16...
Bxf8 {[%clk 0:02:12.8]} 17. Qxe6+ {[%clk 0:02:16.5]} 17... Be7 {[%clk
0:02:11.9]} 18. Bxd5 {[%clk 0:01:25]} 18... Nf6 {[%clk 0:02:00.6]} 19. Qf7+
{[%clk 0:01:03.2]} 19... Kd7 {[%clk 0:02:00.9]} 20. Bxa8 {[%clk 0:01:02.6]}
20... Qa5 {[%clk 0:02:01.7]} 21. Be3 {[%clk 0:00:57.7]} 21... Qe5 {[%clk
0:01:46.6]} 22. Rd1+ {[%clk 0:00:50]} 22... Kc7 {[%clk 0:01:47]} 23. Bc5 {[%clk
0:00:46.7]} 23... Nc6 {[%clk 0:01:41.2]} 24. Bxc6 {[%clk 0:00:41]} 24... Kxc6
{[%clk 0:01:39.7]} 25. Bxe7 {[%clk 0:00:38.2]} 25... Qe3+ {[%clk 0:01:39.3]} 26.
Kh1 {[%clk 0:00:37.6]} 26... Qe2 {[%clk 0:01:36]} 27. Qxf6+ {[%clk 0:00:34.7]}
1-0